[Event "HUN-ch Rapid 2019"]
[Site "Ajka"]
[Date "2019.07.21"]
[Round "12.15"]
[White "Bodi, Tibor"]
[Black "Csonka, Balazs"]
[Result "1/2-1/2"]
[ECO "A34"]
[WhiteElo "2244"]
[BlackElo "2472"]
[Annotator "ChessBase"]
[PlyCount "50"]
[EventDate "2019.07.18"]
[EventType "swiss"]
[EventCountry "HUN"]
[SourceTitle "playchess.com"]
[Source "ChessBase"]
[SourceQuality "1"]
[TimeControl "1200+5"]

1. Nf3 {[%emt 0:00:10]} c5 {[%emt 0:00:18]} 2. c4 {[%emt 0:00:06]} Nf6 {[%emt 0:00:44]} 3. Nc3 {[%emt 0:00:01]} d5 {[%emt 0:01:29]} 4. cxd5 {[%emt 0:00:10]} Nxd5 {[%emt 0:00:02]} 5. e4 {[%emt 0:00:42]} Nb4 {[%emt 0:00:15]} 6. Bb5+ {[%emt 0:00:39]} N8c6 {[%emt 0:01:40]} 7. O-O {[%emt 0:00:23]} a6 {[%emt 0:00:43]} 8. Bxc6+ {[%emt 0:01:20]} Nxc6 {[%emt 0:00:02]} 9. d3 {[%emt 0:00:16]} Bg4 {[%emt 0:01:51]} 10. h3 {[%emt 0:00:38]} Bxf3 {[%emt 0:01:31]} 11. Qxf3 {[%emt 0:00:01]} g6 {[%emt 0:00:27]} 12. Be3 {[%emt 0:00:50]} b6 {[%emt 0:00:11]} 13. Qe2 {[%emt 0:06:58]} Bg7 {[%emt 0:00:13]} 14. Rfd1 {[%emt 0:00:24]} O-O {[%emt 0:00:17]} 15. Rab1 {[%emt 0:00:20]} e6 {[%emt 0:00:41]} 16. a3 {[%emt 0:00:19]} Rc8 {[%emt 0:01:06]} 17. Qd2 {[%emt 0:00:49]} Nd4 {[%emt 0:00:59]} 18. Ne2 {[%emt 0:00:25]} Nxe2+ {[%emt 0:01:42]} 19. Qxe2 {[%emt 0:00:01]} Qd7 {[%emt 0:00:19]} 20. b4 {[%emt 0:00:17]} Qa4 {[%emt 0:00:38]} 21. bxc5 {[%emt 0:00:22]} bxc5 {[%emt 0:00:01]} 22. Rd2 {[%emt 0:03:28]} Rfd8 {[%emt 0:02:07]} 23. Ra2 {[%emt 0:00:02]} c4 {[%emt 0:02:04]} 24. Rb4 {[%emt 0:00:27]} cxd3 {[%emt 0:00:01]} 25. Rxa4 {[%emt 0:00:05]} dxe2 {[%emt 0:00:02]} 1/2-1/2

[Event "HUN-ch Rapid 2019"]
[Site "Ajka"]
[Date "2019.07.21"]
[Round "12.16"]
[White "Emodi, Barnabas"]
[Black "Gelle, Istvan"]
[Result "1/2-1/2"]
[ECO "D02"]
[WhiteElo "2365"]
[BlackElo "2325"]
[Annotator "NA"]
[PlyCount "122"]
[EventDate "2019.07.18"]
[EventType "swiss"]
[EventCountry "HUN"]
[SourceTitle "playchess.com"]
[Source "ChessBase"]
[SourceQuality "1"]
[TimeControl "1200+5"]

1. d4 {[%emt 0:00:02]} d5 {[%emt 0:00:01]} 2. Nf3 {[%emt 0:00:02]} c6 {[%emt 0:00:02]} 3. c4 {[%emt 0:00:03]} Nf6 {[%emt 0:00:02]} 4. Qb3 {[%emt 0:00:03]} dxc4 {[%emt 0:00:09]} 5. Qxc4 {[%emt 0:00:02]} e6 {[%emt 0:00:59]} 6. g3 {[%emt 0:00:12]} Be7 {[%emt 0:00:35]} 7. Bg2 {[%emt 0:00:04]} O-O {[%emt 0:00:03]} 8. O-O {[%emt 0:00:05]} b5 {[%emt 0:01:21]} 9. Qc2 {[%emt 0:00:12]} Bb7 {[%emt 0:00:15]} 10. Bg5 {[%emt 0:01:04]} Nbd7 {[%emt 0:01:43]} 11. Rd1 {[%emt 0:00:41]} Rc8 {[%emt 0:00:31]} 12. Nc3 {[%emt 0:00:46]} a6 {[%emt 0:00:27]} 13. Ne5 {[%emt 0:01:50]} h6 {[%emt 0:01:15]} 14. Nxd7 {[%emt 0:01:07]} Nxd7 {[%emt 0:00:26]} 15. Bxe7 {[%emt 0:00:52]} Qxe7 {[%emt 0:00:02]} 16. Rac1 {[%emt 0:00:20]} Nf6 {[%emt 0:01:15]} 17. Ne4 {[%emt 0:00:30]} Nxe4 {[%emt 0:00:56]} 18. Qxe4 {[%emt 0:00:10]} Rfd8 {[%emt 0:00:54]} 19. Qe5 {[%emt 0:01:24]} Rd6 {[%emt 0:01:22]} 20. Qc5 {[%emt 0:02:24]} Rcd8 {[%emt 0:00:39]} 21. Rd3 {[%emt 0:00:27]} Kf8 {[%emt 0:00:49]} 22. b4 {[%emt 0:02:27]} f6 {[%emt 0:03:43]} 23. Rcc3 {[%emt 0:03:29]} e5 {[%emt 0:01:23]} 24. dxe5 {[%emt 0:00:21]} Qxe5 {[%emt 0:00:17]} 25. Qxe5 {[%emt 0:00:52]} fxe5 {[%emt 0:00:01]} 26. Be4 {[%emt 0:00:09]} Ke7 {[%emt 0:00:34]} 27. f3 {[%emt 0:00:13]} Rxd3 {[%emt 0:00:25]} 28. Bxd3 {[%emt 0:00:10]} Rd4 {[%emt 0:00:25]} 29. a3 {[%emt 0:00:05]} Kd7 {[%emt 0:00:26]} 30. Kf2 {[%emt 0:00:07]} Kc7 {[%emt 0:00:18]} 31. e3 {[%emt 0:00:08]} Rd6 {[%emt 0:00:13]} 32. Ke2 {[%emt 0:00:23]} Kb6 {[%emt 0:00:05]} 33. Be4 {[%emt 0:00:10]} a5 {[%emt 0:00:09]} 34. Rc5 {[%emt 0:00:05]} axb4 {[%emt 0:00:11]} 35. axb4 {[%emt 0:00:01]} Re6 {[%emt 0:00:03]} 36. h4 {[%emt 0:00:05]} Kc7 {[%emt 0:00:10]} 37. Kd3 {[%emt 0:00:07]} Kd6 {[%emt 0:00:03]} 38. Bf5 {[%emt 0:00:13]} Re8 {[%emt 0:00:06]} 39. Ke4 {[%emt 0:00:04]} Re7 {[%emt 0:00:28]} 40. g4 {[%emt 0:00:12]} Re8 {[%emt 0:00:09]} 41. g5 {[%emt 0:00:06]} hxg5 {[%emt 0:00:04]} 42. hxg5 {[%emt 0:00:01]} Re7 {[%emt 0:00:01]} 43. Bg4 {[%emt 0:00:25]} Re8 {[%emt 0:00:06]} 44. Bh3 {[%emt 0:00:27]} Re7 {[%emt 0:00:01]} 45. Bf1 {[%emt 0:00:05]} Re8 {[%emt 0:00:13]} 46. Be2 {[%emt 0:00:09]} Bc8 {[%emt 0:00:03]} 47. Rc1 {[%emt 0:00:04]} Be6 {[%emt 0:00:04]} 48. Rc2 {[%emt 0:00:12]} Rf8 {[%emt 0:00:04]} 49. Kd3 {[%emt 0:00:21]} Bf5+ {[%emt 0:00:05]} 50. e4 {[%emt 0:00:02]} Be6 {[%emt 0:00:01]} 51. Ke3 {[%emt 0:00:02]} Ra8 {[%emt 0:00:09]} 52. Rd2+ {[%emt 0:00:03]} Ke7 {[%emt 0:00:03]} 53. Rd3 {[%emt 0:00:08]} Ra4 {[%emt 0:00:04]} 54. Rc3 {[%emt 0:00:05]} Kd6 {[%emt 0:00:06]} 55. Rd3+ {[%emt 0:00:03]} Kc7 {[%emt 0:00:01]} 56. Rd1 {[%emt 0:00:04]} Rxb4 {[%emt 0:00:02]} 57. Rh1 {[%emt 0:00:01]} Rb3+ {[%emt 0:00:12]} 58. Kf2 {[%emt 0:00:03]} Rb2 {[%emt 0:00:01]} 59. Ke3 {[%emt 0:00:01]} Rb3+ {[%emt 0:00:19]} 60. Kf2 {[%emt 0:00:02]} Rb2 {[%emt 0:00:06]} 61. Ke3 {[%emt 0:00:01]} Rb3+ {[%emt 0:00:01]} 1/2-1/2

[Event "HUN-ch Rapid 2019"]
[Site "Ajka"]
[Date "2019.07.21"]
[Round "12.17"]
[White "Nemeth, Zoltan"]
[Black "Marosi, Levente"]
[Result "1-0"]
[ECO "A46"]
[WhiteElo "2275"]
[BlackElo "2225"]
[Annotator "NA"]
[PlyCount "72"]
[EventDate "2019.07.18"]
[EventType "swiss"]
[EventCountry "HUN"]
[SourceTitle "playchess.com"]
[Source "ChessBase"]
[SourceQuality "1"]
[TimeControl "1200+5"]

1. d4 {[%emt 0:00:03]} Nf6 {[%emt 0:00:10]} 2. Nf3 {[%emt 0:00:06]} e6 {[%emt 0:00:04]} 3. g3 {[%emt 0:00:03]} b5 {[%emt 0:00:01]} 4. Bg2 {[%emt 0:00:02]} d5 {[%emt 0:00:01]} 5. O-O {[%emt 0:00:06]} Be7 {[%emt 0:00:11]} 6. Bg5 {[%emt 0:00:42]} O-O {[%emt 0:00:09]} 7. c3 {[%emt 0:00:03]} h6 {[%emt 0:00:08]} 8. Bxf6 {[%emt 0:00:02]} Bxf6 {[%emt 0:00:01]} 9. Nbd2 {[%emt 0:00:02]} Bb7 {[%emt 0:00:42]} 10. Re1 {[%emt 0:00:02]} Nd7 {[%emt 0:00:10]} 11. e4 {[%emt 0:00:11]} dxe4 {[%emt 0:00:04]} 12. Nxe4 {[%emt 0:00:02]} Be7 {[%emt 0:00:03]} 13. Ne5 {[%emt 0:00:17]} Nxe5 {[%emt 0:00:35]} 14. dxe5 {[%emt 0:00:03]} Qxd1 {[%emt 0:01:48]} 15. Raxd1 {[%emt 0:00:02]} Bd5 {[%emt 0:00:13]} 16. b3 {[%emt 0:02:43]} Rad8 {[%emt 0:00:07]} 17. f4 {[%emt 0:00:07]} a5 {[%emt 0:05:45]} 18. Nf2 {[%emt 0:02:26]} c6 {[%emt 0:02:37]} 19. Re2 {[%emt 0:00:17]} Bc5 {[%emt 0:02:32]} 20. Red2 {[%emt 0:00:18]} Rc8 {[%emt 0:00:02]} 21. Kf1 {[%emt 0:00:59]} a4 {[%emt 0:00:39]} 22. Nd3 {[%emt 0:04:55]} Be7 {[%emt 0:00:03]} 23. b4 {[%emt 0:01:58]} Bc4 {[%emt 0:00:52]} 24. Ke1 {[%emt 0:00:09]} g5 {[%emt 0:01:42]} 25. Kf2 {[%emt 0:00:37]} c5 {[%emt 0:00:29]} 26. bxc5 {[%emt 0:01:16]} Bxc5+ {[%emt 0:00:01]} 27. Nxc5 {[%emt 0:00:02]} Rxc5 {[%emt 0:00:01]} 28. Be4 {[%emt 0:01:03]} Kg7 {[%emt 0:00:42]} 29. Ke3 {[%emt 0:01:24]} Rfc8 {[%emt 0:00:06]} 30. Rb1 {[%emt 0:00:31]} R8c7 {[%emt 0:00:32]} 31. Rb4 {[%emt 0:00:42]} Bf1 {[%emt 0:00:32]} 32. Kf2 {[%emt 0:00:11]} Bc4 {[%emt 0:00:28]} 33. Ke3 {[%emt 0:00:01]} Bf1 {[%emt 0:00:04]} 34. Kf2 {[%emt 0:00:01]} Bc4 {[%emt 0:00:01]} 35. Ke3 {[%emt 0:00:01]} Bf1 {[%emt 0:00:34]} 36. Kf2 {[%emt 0:00:01]} Bc4 {[%emt 0:00:21]} 1-0

[Event "HUN-ch Rapid 2019"]
[Site "Ajka"]
[Date "2019.07.21"]
[Round "12.18"]
[White "Amrein, Roland"]
[Black "Farago, Ivan"]
[Result "0-1"]
[ECO "C07"]
[WhiteElo "2198"]
[BlackElo "2350"]
[Annotator "NA"]
[PlyCount "50"]
[EventDate "2019.07.18"]
[EventType "swiss"]
[EventCountry "HUN"]
[SourceTitle "playchess.com"]
[Source "ChessBase"]
[SourceQuality "1"]
[TimeControl "1200+5"]

1. e4 {[%emt 0:00:02]} e6 {[%emt 0:00:01]} 2. d4 {[%emt 0:00:06]} d5 {[%emt 0:00:02]} 3. Nd2 {[%emt 0:00:02]} c5 {[%emt 0:00:22]} 4. Ngf3 {[%emt 0:00:06]} Nc6 {[%emt 0:00:03]} 5. Bb5 {[%emt 0:00:04]} cxd4 {[%emt 0:00:05]} 6. Nxd4 {[%emt 0:00:02]} Bd7 {[%emt 0:00:03]} 7. Nxc6 {[%emt 0:00:02]} bxc6 {[%emt 0:00:02]} 8. Bd3 {[%emt 0:00:02]} Qc7 {[%emt 0:00:05]} 9. Qe2 {[%emt 0:00:10]} Ne7 {[%emt 0:00:04]} 10. e5 {[%emt 0:03:44]} c5 {[%emt 0:01:28]} 11. c4 {[%emt 0:00:08]} Nc6 {[%emt 0:01:18]} 12. f4 {[%emt 0:00:35]} Nd4 {[%emt 0:00:30]} 13. Qf2 {[%emt 0:00:42]} Be7 {[%emt 0:00:14]} 14. O-O {[%emt 0:00:11]} O-O {[%emt 0:00:06]} 15. Nf3 {[%emt 0:01:50]} dxc4 {[%emt 0:00:35]} 16. Bxc4 {[%emt 0:00:06]} Nxf3+ {[%emt 0:00:31]} 17. Qxf3 {[%emt 0:00:04]} Bc6 {[%emt 0:00:02]} 18. Qe2 {[%emt 0:00:18]} Rad8 {[%emt 0:00:56]} 19. f5 {[%emt 0:00:57]} exf5 {[%emt 0:00:34]} 20. Rxf5 {[%emt 0:00:05]} Bd5 {[%emt 0:00:17]} 21. Bg5 {[%emt 0:02:28]} Bxc4 {[%emt 0:00:55]} 22. Qxc4 {[%emt 0:00:07]} g6 {[%emt 0:01:07]} 23. Bf6 {[%emt 0:02:58]} gxf5 {[%emt 0:01:35]} 24. Rf1 {[%emt 0:01:56]} Bxf6 {[%emt 0:00:11]} 25. exf6 {[%emt 0:00:03]} Qe5 0-1

[Event "HUN-ch Rapid 2019"]
[Site "Ajka"]
[Date "2019.07.21"]
[Round "12.19"]
[White "Terbe, Julianna"]
[Black "Deak, Sandor"]
[Result "1-0"]
[ECO "A45"]
[WhiteElo "2298"]
[BlackElo "2279"]
[Annotator "NA"]
[PlyCount "35"]
[EventDate "2019.07.18"]
[EventType "swiss"]
[EventCountry "HUN"]
[SourceTitle "playchess.com"]
[Source "ChessBase"]
[SourceQuality "1"]
[TimeControl "1200+5"]

1. d4 {[%emt 0:00:03]} Nf6 {[%emt 0:00:25]} 2. Bf4 {[%emt 0:00:03]} c5 {[%emt 0:00:03]} 3. e3 {[%emt 0:00:02]} Qb6 {[%emt 0:00:12]} 4. Nc3 {[%emt 0:00:08]} cxd4 {[%emt 0:00:08]} 5. exd4 {[%emt 0:00:04]} Qxb2 {[%emt 0:02:45]} 6. Nb5 {[%emt 0:00:08]} Na6 {[%emt 0:01:48]} 7. a3 {[%emt 0:01:00]} d5 {[%emt 0:04:33]} 8. Rb1 {[%emt 0:02:04]} Qa2 {[%emt 0:00:01]} 9. Qc1 {[%emt 0:00:36]} e5 {[%emt 0:05:05]} 10. Ra1 {[%emt 0:01:38]} Qxa1 {[%emt 0:00:06]} 11. Qxa1 {[%emt 0:00:01]} exf4 {[%emt 0:00:01]} 12. Bd3 {[%emt 0:00:13]} Be7 {[%emt 0:00:33]} 13. Qc1 {[%emt 0:00:35]} O-O {[%emt 0:00:08]} 14. Qxf4 {[%emt 0:00:31]} Bd7 {[%emt 0:00:01]} 15. Ne2 {[%emt 0:01:21]} Bxb5 {[%emt 0:00:06]} 16. Bxb5 {[%emt 0:00:01]} Bxa3 {[%emt 0:00:01]} 17. O-O {[%emt 0:00:02]} Nc7 {[%emt 0:00:04]} 18. Qxc7 {[%emt 0:00:11]} 1-0

[Event "HUN-ch Rapid 2019"]
[Site "Ajka"]
[Date "2019.07.21"]
[Round "12.20"]
[White "Nagy, Bence"]
[Black "Balint, Vilmos"]
[Result "0-1"]
[ECO "C45"]
[WhiteElo "2352"]
[BlackElo "2203"]
[Annotator "NA"]
[PlyCount "108"]
[EventDate "2019.07.18"]
[EventType "swiss"]
[EventCountry "HUN"]
[SourceTitle "playchess.com"]
[Source "ChessBase"]
[SourceQuality "1"]
[TimeControl "1200+5"]

1. e4 {[%emt 0:00:01]} e5 {[%emt 0:00:08]} 2. Nf3 {[%emt 0:00:02]} Nc6 {[%emt 0:00:01]} 3. d4 {[%emt 0:00:01]} exd4 {[%emt 0:00:02]} 4. Nxd4 {[%emt 0:00:02]} Bc5 {[%emt 0:00:02]} 5. Nb3 {[%emt 0:00:20]} Bb6 {[%emt 0:00:03]} 6. Nc3 {[%emt 0:00:27]} d6 {[%emt 0:00:36]} 7. Bd3 {[%emt 0:02:01]} Nf6 {[%emt 0:01:02]} 8. Bg5 {[%emt 0:01:02]} h6 {[%emt 0:00:03]} 9. Bh4 {[%emt 0:00:06]} Be6 {[%emt 0:00:11]} 10. Qe2 {[%emt 0:00:34]} g5 {[%emt 0:02:49]} 11. Bg3 {[%emt 0:00:03]} Ne5 {[%emt 0:00:03]} 12. O-O-O {[%emt 0:00:24]} Qe7 {[%emt 0:00:27]} 13. h4 {[%emt 0:00:55]} O-O-O {[%emt 0:01:07]} 14. Kb1 {[%emt 0:00:08]} Nxd3 {[%emt 0:01:05]} 15. Qxd3 {[%emt 0:00:53]} Nh5 {[%emt 0:00:30]} 16. Nd5 {[%emt 0:01:32]} Bxd5 {[%emt 0:00:19]} 17. exd5 {[%emt 0:00:07]} Nxg3 {[%emt 0:00:09]} 18. fxg3 {[%emt 0:00:50]} Rde8 {[%emt 0:00:52]} 19. a4 {[%emt 0:00:07]} a5 {[%emt 0:00:58]} 20. Nd2 {[%emt 0:03:23]} Qd7 {[%emt 0:00:11]} 21. Nc4 {[%emt 0:01:01]} Bc5 {[%emt 0:00:12]} 22. hxg5 {[%emt 0:00:21]} hxg5 {[%emt 0:00:11]} 23. Rxh8 {[%emt 0:00:11]} Rxh8 {[%emt 0:00:01]} 24. Qc3 {[%emt 0:00:09]} Rh2 {[%emt 0:00:47]} 25. Qxa5 {[%emt 0:00:03]} Kb8 {[%emt 0:00:01]} 26. b3 {[%emt 0:01:23]} Rxg2 {[%emt 0:00:28]} 27. Qc3 {[%emt 0:00:53]} Qg4 {[%emt 0:00:21]} 28. Rd3 {[%emt 0:01:15]} Rh2 {[%emt 0:01:25]} 29. Ne5 {[%emt 0:00:44]} Qf5 {[%emt 0:00:52]} 30. Nf3 {[%emt 0:00:19]} Rh1+ {[%emt 0:00:15]} 31. Ka2 {[%emt 0:00:01]} g4 {[%emt 0:00:05]} 32. Nd2 {[%emt 0:00:41]} Bf2 {[%emt 0:02:06]} 33. a5 {[%emt 0:00:47]} Be1 {[%emt 0:02:52]} 34. Re3 {[%emt 0:00:47]} Qxd5 {[%emt 0:00:01]} 35. Re8+ {[%emt 0:00:05]} Ka7 {[%emt 0:00:01]} 36. Qxc7 {[%emt 0:00:01]} Qc6 {[%emt 0:00:32]} 37. Qb8+ {[%emt 0:00:14]} Ka6 {[%emt 0:00:00]} 38. Qa8+ {[%emt 0:00:15]} Kb5 {[%emt 0:00:01]} 39. Rc8 {[%emt 0:00:04]} Qa6 {[%emt 0:01:01]} 40. Qxa6+ {[%emt 0:00:27]} Kxa6 {[%emt 0:00:01]} 41. Nc4 {[%emt 0:00:10]} Bc3 {[%emt 0:00:46]} 42. b4 {[%emt 0:00:14]} Bxb4 {[%emt 0:00:10]} 43. Kb3 {[%emt 0:00:05]} Bc5 {[%emt 0:00:18]} 44. Nb2 {[%emt 0:00:16]} Kxa5 {[%emt 0:00:06]} 45. c4 {[%emt 0:00:06]} Rg1 {[%emt 0:00:14]} 46. Nd3 {[%emt 0:00:12]} Rxg3 {[%emt 0:00:06]} 47. Kc3 {[%emt 0:00:01]} Bb4+ {[%emt 0:00:04]} 48. Kd4 {[%emt 0:00:01]} Bc5+ {[%emt 0:00:10]} 49. Nxc5 {[%emt 0:00:02]} dxc5+ {[%emt 0:00:01]} 50. Kxc5 {[%emt 0:00:01]} b6+ {[%emt 0:00:02]} 51. Kc6 {[%emt 0:00:02]} Rc3 {[%emt 0:00:08]} 52. Ra8+ {[%emt 0:00:04]} Kb4 {[%emt 0:00:01]} 53. Kxb6 {[%emt 0:00:03]} Rxc4 {[%emt 0:00:02]} 54. Rf8 {[%emt 0:00:02]} Rf4 {[%emt 0:00:02]} 0-1

[Event "HUN-ch Rapid 2019"]
[Site "Ajka"]
[Date "2019.07.21"]
[Round "13.1"]
[White "Gledura, Benjamin"]
[Black "Aczel, Gergely"]
[Result "1-0"]
[ECO "A06"]
[WhiteElo "2654"]
[BlackElo "2540"]
[Annotator "ChessBase"]
[PlyCount "75"]
[EventDate "2019.07.18"]
[EventType "swiss"]
[EventCountry "HUN"]
[SourceTitle "playchess.com"]
[Source "ChessBase"]
[SourceQuality "1"]
[TimeControl "1200+5"]

1. Nf3 {[%emt 0:00:04]} d5 {[%emt 0:00:01]} 2. g3 {[%emt 0:00:03]} c6 {[%emt 0:00:03]} 3. Bg2 Bg4 {[%emt 0:00:05]} 4. d4 {[%emt 0:00:08]} e6 {[%emt 0:00:09]} 5. h3 {[%emt 0:00:14]} Bh5 {[%emt 0:00:03]} 6. O-O {[%emt 0:00:06]} Nd7 {[%emt 0:00:11]} 7. c4 {[%emt 0:00:09]} Ngf6 {[%emt 0:00:02]} 8. cxd5 {[%emt 0:00:08]} exd5 {[%emt 0:00:09]} 9. Qb3 {[%emt 0:00:03]} Nb6 {[%emt 0:00:45]} 10. a4 {[%emt 0:00:21]} a5 {[%emt 0:00:17]} 11. Ne5 {[%emt 0:00:38]} Bd6 {[%emt 0:04:03]} 12. Nc3 {[%emt 0:00:29]} O-O {[%emt 0:01:13]} 13. f4 {[%emt 0:00:07]} h6 {[%emt 0:07:43]} 14. g4 {[%emt 0:00:07]} Bg6 {[%emt 0:00:12]} 15. Nxg6 {[%emt 0:00:20]} fxg6 {[%emt 0:00:01]} 16. e4 {[%emt 0:00:02]} Bb4 {[%emt 0:00:25]} 17. e5 {[%emt 0:00:06]} Nfd7 {[%emt 0:01:08]} 18. Qc2 {[%emt 0:00:36]} Qe8 {[%emt 0:00:16]} 19. Be3 {[%emt 0:00:41]} Kh8 {[%emt 0:00:04]} 20. b3 {[%emt 0:00:40]} Rc8 {[%emt 0:00:02]} 21. Qd3 {[%emt 0:00:29]} c5 {[%emt 0:00:15]} 22. Nxd5 {[%emt 0:00:27]} Nxd5 {[%emt 0:00:13]} 23. Bxd5 {[%emt 0:00:01]} cxd4 {[%emt 0:00:04]} 24. Bxd4 {[%emt 0:00:22]} Nc5 {[%emt 0:00:22]} 25. Qf3 {[%emt 0:00:57]} Ne6 {[%emt 0:00:44]} 26. Bxe6 {[%emt 0:00:22]} Qxe6 {[%emt 0:00:01]} 27. f5 {[%emt 0:00:09]} gxf5 {[%emt 0:00:09]} 28. gxf5 {[%emt 0:00:02]} Qe7 {[%emt 0:01:37]} 29. Kh1 {[%emt 0:00:30]} Rcd8 {[%emt 0:00:13]} 30. f6 {[%emt 0:01:11]} Qe6 {[%emt 0:00:09]} 31. Rad1 {[%emt 0:00:16]} Rf7 {[%emt 0:00:33]} 32. Rd3 {[%emt 0:03:30]} Rc8 {[%emt 0:00:02]} 33. Qf5 {[%emt 0:02:21]} Qd5+ {[%emt 0:00:27]} 34. Rdf3 {[%emt 0:00:02]} Re8 {[%emt 0:00:02]} 35. e6 {[%emt 0:00:08]} Qxf5 {[%emt 0:00:48]} 36. Rxf5 {[%emt 0:00:02]} Rxe6 {[%emt 0:00:15]} 37. fxg7+ {[%emt 0:00:02]} Rxg7 {[%emt 0:00:01]} 38. Rf7 {[%emt 0:00:05]} 1-0

[Event "HUN-ch Rapid 2019"]
[Site "Ajka"]
[Date "2019.07.21"]
[Round "13.3"]
[White "Papp, Gabor"]
[Black "Balog, Imre"]
[Result "0-1"]
[ECO "C04"]
[WhiteElo "2587"]
[BlackElo "2566"]
[Annotator "ChessBase"]
[PlyCount "36"]
[EventDate "2019.07.18"]
[EventType "swiss"]
[EventCountry "HUN"]
[SourceTitle "playchess.com"]
[Source "ChessBase"]
[SourceQuality "1"]
[TimeControl "1200+5"]

1. e4 {[%emt 0:00:02]} e6 {[%emt 0:00:01]} 2. d4 {[%emt 0:00:01]} d5 {[%emt 0:00:02]} 3. Nd2 {[%emt 0:00:02]} Nc6 {[%emt 0:00:17]} 4. Ngf3 {[%emt 0:00:12]} Nf6 {[%emt 0:00:01]} 5. exd5 {[%emt 0:00:33]} exd5 {[%emt 0:00:09]} 6. c3 {[%emt 0:00:01]} Bf5 {[%emt 0:00:15]} 7. Bb5 {[%emt 0:00:07]} Bd6 {[%emt 0:00:07]} 8. O-O {[%emt 0:00:07]} O-O {[%emt 0:00:05]} 9. Bxc6 {[%emt 0:00:02]} bxc6 {[%emt 0:00:03]} 10. Nb3 {[%emt 0:00:28]} Ne4 {[%emt 0:00:11]} 11. Ne5 {[%emt 0:00:33]} Qh4 {[%emt 0:01:14]} 12. Qf3 {[%emt 0:00:55]} f6 {[%emt 0:00:29]} 13. g3 {[%emt 0:00:41]} Qh3 {[%emt 0:00:20]} 14. Nxc6 {[%emt 0:00:20]} Ng5 {[%emt 0:00:02]} 15. Qe2 {[%emt 0:03:36]} Nf3+ {[%emt 0:01:03]} 16. Qxf3 {[%emt 0:00:03]} Be4 {[%emt 0:00:01]} 17. Nd2 {[%emt 0:00:31]} Bxf3 {[%emt 0:00:52]} 18. Nxf3 {[%emt 0:00:01]} a5 0-1

[Event "HUN-ch Rapid 2019"]
[Site "Ajka"]
[Date "2019.07.21"]
[Round "13.4"]
[White "Mihok, Oliver"]
[Black "Banusz, Tamas"]
[Result "1/2-1/2"]
[ECO "B33"]
[WhiteElo "2550"]
[BlackElo "2626"]
[Annotator "ChessBase"]
[PlyCount "78"]
[EventDate "2019.07.18"]
[EventType "swiss"]
[EventCountry "HUN"]
[SourceTitle "playchess.com"]
[Source "ChessBase"]
[SourceQuality "1"]
[TimeControl "1200+5"]

1. e4 {[%emt 0:00:02]} c5 {[%emt 0:00:01]} 2. Nf3 {[%emt 0:00:01]} Nc6 {[%emt 0:00:01]} 3. d4 {[%emt 0:00:03]} cxd4 {[%emt 0:00:02]} 4. Nxd4 {[%emt 0:00:01]} Nf6 {[%emt 0:00:01]} 5. Nc3 {[%emt 0:00:01]} e5 {[%emt 0:00:01]} 6. Ndb5 {[%emt 0:00:01]} d6 {[%emt 0:00:01]} 7. Bg5 {[%emt 0:00:04]} a6 {[%emt 0:00:01]} 8. Na3 {[%emt 0:00:01]} b5 {[%emt 0:00:01]} 9. Bxf6 {[%emt 0:00:03]} gxf6 {[%emt 0:00:02]} 10. Nd5 {[%emt 0:00:01]} Bg7 {[%emt 0:00:01]} 11. Bd3 {[%emt 0:01:00]} Ne7 {[%emt 0:00:01]} 12. Nxe7 {[%emt 0:00:23]} Qxe7 {[%emt 0:00:02]} 13. O-O {[%emt 0:00:33]} O-O {[%emt 0:00:19]} 14. c3 {[%emt 0:01:11]} f5 {[%emt 0:00:03]} 15. exf5 {[%emt 0:00:39]} e4 {[%emt 0:00:25]} 16. Re1 {[%emt 0:00:49]} Bxf5 {[%emt 0:00:20]} 17. Nc2 {[%emt 0:00:31]} d5 {[%emt 0:00:55]} 18. Nd4 {[%emt 0:01:50]} Bd7 {[%emt 0:02:32]} 19. f3 {[%emt 0:01:33]} f5 {[%emt 0:00:40]} 20. Qb3 {[%emt 0:00:47]} Bxd4+ {[%emt 0:01:33]} 21. cxd4 {[%emt 0:00:02]} Be6 {[%emt 0:00:07]} 22. Bf1 {[%emt 0:01:37]} Kh8 {[%emt 0:00:59]} 23. f4 {[%emt 0:01:41]} Rg8 {[%emt 0:00:24]} 24. Rac1 {[%emt 0:01:08]} Rg4 {[%emt 0:00:46]} 25. g3 {[%emt 0:01:14]} h5 {[%emt 0:00:27]} 26. Be2 {[%emt 0:01:14]} Rg7 {[%emt 0:00:01]} 27. Bxh5 {[%emt 0:00:36]} Qh4 {[%emt 0:00:07]} 28. Rc6 {[%emt 0:00:38]} Rag8 {[%emt 0:05:05]} 29. Re3 {[%emt 0:00:01]} Rh7 {[%emt 0:00:53]} 30. Rxe6 {[%emt 0:01:17]} Rxh5 {[%emt 0:00:18]} 31. Qc2 {[%emt 0:01:39]} Qxf4 {[%emt 0:00:06]} 32. Rc3 {[%emt 0:00:43]} Rh6 {[%emt 0:03:34]} 33. Rxh6+ {[%emt 0:00:25]} Qxh6 {[%emt 0:00:01]} 34. Rc6 {[%emt 0:00:25]} Qe3+ {[%emt 0:00:11]} 35. Qf2 {[%emt 0:00:01]} Qg5 {[%emt 0:00:35]} 36. Kf1 {[%emt 0:00:22]} Qg4 {[%emt 0:00:19]} 37. Qe3 {[%emt 0:00:10]} f4 {[%emt 0:01:24]} 38. Qxf4 {[%emt 0:00:07]} Qxf4+ {[%emt 0:00:02]} 39. gxf4 {[%emt 0:00:01]} Rf8 {[%emt 0:00:12]} 1/2-1/2

[Event "HUN-ch Rapid 2019"]
[Site "Ajka"]
[Date "2019.07.21"]
[Round "13.5"]
[White "Horvath, Peter"]
[Black "Czebe, Attila"]
[Result "0-1"]
[ECO "A41"]
[WhiteElo "2418"]
[BlackElo "2436"]
[Annotator "NA"]
[PlyCount "62"]
[EventDate "2019.07.18"]
[EventType "swiss"]
[EventCountry "HUN"]
[SourceTitle "playchess.com"]
[Source "ChessBase"]
[SourceQuality "1"]
[TimeControl "1200+5"]

1. d4 {[%emt 0:00:02]} d6 {[%emt 0:00:01]} 2. c4 {[%emt 0:00:05]} e5 {[%emt 0:00:02]} 3. d5 {[%emt 0:00:12]} g6 {[%emt 0:00:08]} 4. e4 {[%emt 0:00:17]} Bg7 {[%emt 0:00:02]} 5. Nc3 {[%emt 0:00:09]} a5 {[%emt 0:00:03]} 6. Be2 {[%emt 0:00:40]} f5 {[%emt 0:01:18]} 7. exf5 {[%emt 0:01:58]} gxf5 {[%emt 0:00:02]} 8. Bh5+ {[%emt 0:00:12]} Kf8 {[%emt 0:00:01]} 9. Be2 {[%emt 0:01:11]} Na6 {[%emt 0:00:23]} 10. Nf3 {[%emt 0:00:44]} Ne7 {[%emt 0:01:13]} 11. a3 {[%emt 0:02:21]} Bd7 {[%emt 0:00:27]} 12. Rb1 {[%emt 0:00:45]} Ng6 {[%emt 0:02:06]} 13. O-O {[%emt 0:01:05]} Qf6 {[%emt 0:01:42]} 14. Bg5 {[%emt 0:02:50]} Qf7 {[%emt 0:00:02]} 15. b4 {[%emt 0:00:36]} axb4 {[%emt 0:00:43]} 16. axb4 {[%emt 0:00:02]} h6 {[%emt 0:02:08]} 17. Be3 {[%emt 0:02:00]} Bf6 {[%emt 0:00:01]} 18. c5 {[%emt 0:01:35]} Kg7 {[%emt 0:00:02]} 19. c6 {[%emt 0:01:12]} bxc6 {[%emt 0:00:11]} 20. dxc6 {[%emt 0:00:02]} Be6 {[%emt 0:01:21]} 21. Bxa6 {[%emt 0:01:05]} Rxa6 {[%emt 0:00:01]} 22. b5 {[%emt 0:00:03]} Ra3 {[%emt 0:00:33]} 23. Qc1 {[%emt 0:00:06]} Raa8 {[%emt 0:00:44]} 24. b6 {[%emt 0:00:47]} cxb6 {[%emt 0:00:58]} 25. Rxb6 {[%emt 0:00:06]} Ne7 {[%emt 0:00:45]} 26. Rb7 {[%emt 0:00:48]} Rhg8 {[%emt 0:00:38]} 27. Nb5 {[%emt 0:00:38]} Kh8 {[%emt 0:00:02]} 28. Nxd6 {[%emt 0:00:22]} Qh5 {[%emt 0:00:02]} 29. Ne1 {[%emt 0:00:13]} Bd5 {[%emt 0:00:12]} 30. Rc7 {[%emt 0:00:14]} Rxg2+ {[%emt 0:00:39]} 31. Nxg2 {[%emt 0:00:06]} Qf3 {[%emt 0:00:01]} 0-1